[Event "Titled Tuesday Blitz October 31 Late 2023"]
[White "Skaric, Djuro"]
[Black "szachmistrz2500"]
[WhiteFideId "934569"]
[WhiteElo "2304"]
[BlackElo "2414"]
[Result "0-1"]
[Round "8"]
[TimeControl "180+1"]
[Date "2023.10.31"]
[WhiteClock "0:00:12"]
[BlackClock "0:00:21"]
[Board "110"]

1. g3 {[%clk 0:03:00]}  c5 {[%clk 0:02:54]} 2. Bg2 {[%clk 0:03:01]}  g6 {[%clk 0:02:54]} 3. d3 {[%clk 0:03:02]}  Bg7 {[%clk 0:02:54]} 4. Nc3 {[%clk 0:03:03]}  e5 {[%clk 0:02:48]} 5. e4 {[%clk 0:03:03]}  Ne7 {[%clk 0:02:48]} 6. f4 {[%clk 0:03:02]}  Nbc6 {[%clk 0:02:44]} 7. Nf3 {[%clk 0:03:02]}  d5 {[%clk 0:02:43]} 8. fxe5 {[%clk 0:03:01]}  d4 {[%clk 0:02:40]} 9. Ne2 {[%clk 0:03:00]}  Nxe5 {[%clk 0:02:35]} 10. Nxe5 {[%clk 0:02:58]}  Bxe5 {[%clk 0:02:35]} 11. Bh6 {[%clk 0:02:56]}  Be6 {[%clk 0:02:29]} 12. O-O {[%clk 0:02:56]}  Qd7 {[%clk 0:02:28]} 13. Nf4 {[%clk 0:02:55]}  O-O-O {[%clk 0:02:27]} 14. Nxe6 {[%clk 0:02:53]}  Qxe6 {[%clk 0:02:19]} 15. Qf3 {[%clk 0:02:49]}  f6 {[%clk 0:02:18]} 16. Bf4 {[%clk 0:02:41]}  Rhf8 {[%clk 0:02:03]} 17. a4 {[%clk 0:02:36]}  Nc6 {[%clk 0:02:01]} 18. a5 {[%clk 0:02:35]}  a6 {[%clk 0:01:57]} 19. Ra4 {[%clk 0:02:31]}  Kb8 {[%clk 0:01:48]} 20. Rc4 {[%clk 0:02:30]}  Qe7 {[%clk 0:01:48]} 21. c3 {[%clk 0:02:21]}  Nxa5 {[%clk 0:01:45]} 22. Ra4 {[%clk 0:02:21]}  Nc6 {[%clk 0:01:43]} 23. b4 {[%clk 0:02:17]}  dxc3 {[%clk 0:01:40]} 24. bxc5 {[%clk 0:02:14]}  Qxc5+ {[%clk 0:01:34]} 25. Kh1 {[%clk 0:02:12]}  Bxf4 {[%clk 0:01:27]} 26. gxf4 {[%clk 0:02:06]}  c2 {[%clk 0:01:20]} 27. Rc4 {[%clk 0:02:06]}  Qd6 {[%clk 0:01:14]} 28. Rxc2 {[%clk 0:02:00]}  Qxd3 {[%clk 0:01:14]} 29. Qf2 {[%clk 0:02:00]}  Qd4 {[%clk 0:01:10]} 30. Qg3 {[%clk 0:01:52]}  Nb4 {[%clk 0:01:07]} 31. Rcc1 {[%clk 0:01:48]}  Nd3 {[%clk 0:01:05]} 32. Rb1 {[%clk 0:01:48]}  Rf7 {[%clk 0:00:59]} 33. h4 {[%clk 0:01:42]}  Rc7 {[%clk 0:00:52]} 34. Kh2 {[%clk 0:01:36]}  Nc5 {[%clk 0:00:49]} 35. e5 {[%clk 0:01:24]}  fxe5 {[%clk 0:00:45]} 36. fxe5 {[%clk 0:01:24]}  Re8 {[%clk 0:00:42]} 37. Rfe1 {[%clk 0:01:16]}  Re6 {[%clk 0:00:40]} 38. Kh1 {[%clk 0:00:59]}  Rce7 {[%clk 0:00:38]} 39. Rbd1 {[%clk 0:00:36]}  Qb4 {[%clk 0:00:35]} 40. Rd8+ {[%clk 0:00:30]}  Ka7 {[%clk 0:00:35]} 41. Bd5 {[%clk 0:00:22]}  Rb6 {[%clk 0:00:31]} 42. Re3 {[%clk 0:00:14]}  Qb1+ {[%clk 0:00:27]} 43. Kh2 {[%clk 0:00:14]}  Rb2+ {[%clk 0:00:26]} 44. Kh3 {[%clk 0:00:15]}  Qf5+ {[%clk 0:00:25]} 45. Qg4 {[%clk 0:00:12]}  Rh2+ {[%clk 0:00:25]} 46. Kg3 {[%clk 0:00:12]}  Qf2# {[%clk 0:00:21]} 0-1


[Site "https://www.chess.com"]

[Event "Titled Tuesday Blitz October 31 Late 2023"]
[White "Novikova, Galina"]
[Black "rikchessmx"]
[WhiteFideId "4157095"]
[WhiteElo "2400"]
[BlackElo "2288"]
[Result "1-0"]
[Round "8"]
[TimeControl "180+1"]
[Date "2023.10.31"]
[WhiteClock "0:00:04"]
[BlackClock "0:00:00"]
[Board "111"]

1. e4 {[%clk 0:03:00]}  e5 {[%clk 0:02:58]} 2. Nf3 {[%clk 0:02:57]}  Nc6 {[%clk 0:02:59]} 3. Bc4 {[%clk 0:02:56]}  Bc5 {[%clk 0:02:59]} 4. b4 {[%clk 0:02:56]}  Bxb4 {[%clk 0:02:59]} 5. c3 {[%clk 0:02:57]}  Ba5 {[%clk 0:02:52]} 6. d4 {[%clk 0:02:57]}  exd4 {[%clk 0:02:51]} 7. O-O {[%clk 0:02:58]}  dxc3 {[%clk 0:02:47]} 8. Qb3 {[%clk 0:02:53]}  Qf6 {[%clk 0:02:47]} 9. e5 {[%clk 0:02:22]}  Qg6 {[%clk 0:02:38]} 10. Nxc3 {[%clk 0:02:16]}  Nge7 {[%clk 0:02:37]} 11. Bf4 {[%clk 0:01:45]}  Bb6 {[%clk 0:02:26]} 12. Nd5 {[%clk 0:01:25]}  Nxd5 {[%clk 0:02:14]} 13. Bxd5 {[%clk 0:01:25]}  O-O {[%clk 0:02:13]} 14. Rad1 {[%clk 0:01:19]}  d6 {[%clk 0:02:03]} 15. exd6 {[%clk 0:01:17]}  cxd6 {[%clk 0:02:01]} 16. Bxd6 {[%clk 0:01:16]}  Bg4 {[%clk 0:01:37]} 17. Bxf8 {[%clk 0:01:12]}  Rxf8 {[%clk 0:01:36]} 18. Qd3 {[%clk 0:00:57]}  Bf5 {[%clk 0:01:31]} 19. Qb5 {[%clk 0:00:47]}  Bg4 {[%clk 0:01:23]} 20. Kh1 {[%clk 0:00:34]}  Nd4 {[%clk 0:00:42]} 21. Qd3 {[%clk 0:00:29]}  Qh5 {[%clk 0:00:39]} 22. Bxb7 {[%clk 0:00:23]}  Rd8 {[%clk 0:00:36]} 23. Qe3 {[%clk 0:00:16]}  h6 {[%clk 0:00:23]} 24. Qf4 {[%clk 0:00:09]}  Rd7 {[%clk 0:00:14]} 25. Bc8 {[%clk 0:00:08]}  Bxf3 {[%clk 0:00:08]} 26. gxf3 {[%clk 0:00:04]}  Rd8 {[%clk 0:00:05]} 27. Bg4 {[%clk 0:00:05]}  Qh4 {[%clk 0:00:02]} 28. Rd3 {[%clk 0:00:05]}  h5 {[%clk 0:00:00]} 29. Qg3 {[%clk 0:00:04]} 1-0


[Site "https://www.chess.com"]

[Event "Titled Tuesday Blitz October 31 Late 2023"]
[White "Mushini Ajay"]
[Black "Broca Jimenez, Fernando"]
[WhiteFideId "35066188"]
[BlackFideId "5104742"]
[WhiteElo "2389"]
[BlackElo "2244"]
[Result "0-1"]
[Round "8"]
[TimeControl "180+1"]
[Date "2023.10.31"]
[WhiteClock "0:00:14"]
[BlackClock "0:01:07"]
[Board "112"]

1. e4 {[%clk 0:03:00]}  c5 {[%clk 0:02:59]} 2. Nf3 {[%clk 0:03:00]}  g6 {[%clk 0:03:00]} 3. d4 {[%clk 0:02:58]}  cxd4 {[%clk 0:03:00]} 4. c3 {[%clk 0:02:58]}  Bg7 {[%clk 0:02:59]} 5. cxd4 {[%clk 0:02:58]}  d5 {[%clk 0:03:00]} 6. e5 {[%clk 0:02:57]}  Bg4 {[%clk 0:03:00]} 7. Nc3 {[%clk 0:02:55]}  Nc6 {[%clk 0:02:59]} 8. Be3 {[%clk 0:02:54]}  e6 {[%clk 0:02:57]} 9. h3 {[%clk 0:02:46]}  Bxf3 {[%clk 0:02:57]} 10. Qxf3 {[%clk 0:02:46]}  Nge7 {[%clk 0:02:58]} 11. Bd3 {[%clk 0:02:44]}  Qb6 {[%clk 0:02:45]} 12. O-O {[%clk 0:02:40]}  Nxd4 {[%clk 0:02:34]} 13. Qf4 {[%clk 0:02:22]}  Nec6 {[%clk 0:02:29]} 14. Nb5 {[%clk 0:01:14]}  Bxe5 {[%clk 0:02:18]} 15. Nd6+ {[%clk 0:01:13]}  Bxd6 {[%clk 0:02:12]} 16. Qxd6 {[%clk 0:01:14]}  Qd8 {[%clk 0:02:11]} 17. Qc5 {[%clk 0:01:01]}  Nf5 {[%clk 0:02:04]} 18. Bxf5 {[%clk 0:00:59]}  gxf5 {[%clk 0:02:03]} 19. Rfe1 {[%clk 0:00:51]}  Qa5 {[%clk 0:01:49]} 20. Qd6 {[%clk 0:00:40]}  Rd8 {[%clk 0:01:42]} 21. Qf4 {[%clk 0:00:38]}  Qb4 {[%clk 0:01:35]} 22. Qg5 {[%clk 0:00:31]}  Qe7 {[%clk 0:01:31]} 23. Qh5 {[%clk 0:00:28]}  Kd7 {[%clk 0:01:20]} 24. Rac1 {[%clk 0:00:20]}  f6 {[%clk 0:01:13]} 25. Bc5 {[%clk 0:00:18]}  Qg7 {[%clk 0:01:11]} 26. Qf3 {[%clk 0:00:17]}  Rhg8 {[%clk 0:01:08]} 27. b4 {[%clk 0:00:15]}  Ne5 {[%clk 0:01:08]} 28. Qf4 {[%clk 0:00:14]}  Qxg2# {[%clk 0:01:07]} 0-1


[Site "https://www.chess.com"]

[Event "Titled Tuesday Blitz October 31 Late 2023"]
[White "Alfaro, William"]
[Black "Baghdasaryan, Vahe"]
[WhiteFideId "6100457"]
[BlackFideId "13303139"]
[WhiteElo "2197"]
[BlackElo "2375"]
[Result "1-0"]
[Round "8"]
[TimeControl "180+1"]
[Date "2023.10.31"]
[WhiteClock "0:00:07"]
[BlackClock "0:00:09"]
[Board "114"]

1. e4 {[%clk 0:03:00]}  e5 {[%clk 0:02:57]} 2. Nf3 {[%clk 0:03:00]}  Nc6 {[%clk 0:02:57]} 3. Bc4 {[%clk 0:03:00]}  Nf6 {[%clk 0:02:55]} 4. d3 {[%clk 0:02:56]}  Bc5 {[%clk 0:02:54]} 5. O-O {[%clk 0:02:55]}  O-O {[%clk 0:02:53]} 6. a4 {[%clk 0:02:55]}  d6 {[%clk 0:02:40]} 7. a5 {[%clk 0:02:53]}  a6 {[%clk 0:02:29]} 8. c3 {[%clk 0:02:48]}  Bg4 {[%clk 0:02:26]} 9. Be3 {[%clk 0:02:45]}  Ba7 {[%clk 0:02:10]} 10. h3 {[%clk 0:02:36]}  Bh5 {[%clk 0:02:09]} 11. Nbd2 {[%clk 0:02:20]}  Bxe3 {[%clk 0:01:36]} 12. fxe3 {[%clk 0:02:20]}  d5 {[%clk 0:01:37]} 13. exd5 {[%clk 0:02:07]}  Nxd5 {[%clk 0:01:38]} 14. Qe1 {[%clk 0:01:56]}  Bg6 {[%clk 0:01:31]} 15. d4 {[%clk 0:01:38]}  exd4 {[%clk 0:01:29]} 16. exd4 {[%clk 0:01:37]}  Re8 {[%clk 0:01:23]} 17. Qg3 {[%clk 0:01:36]}  Ne3 {[%clk 0:01:19]} 18. Rfe1 {[%clk 0:01:34]}  Nxc4 {[%clk 0:01:18]} 19. Nxc4 {[%clk 0:01:35]}  Qd5 {[%clk 0:01:14]} 20. Nfe5 {[%clk 0:01:30]}  Re6 {[%clk 0:01:02]} 21. Nxg6 {[%clk 0:01:23]}  Rxg6 {[%clk 0:00:59]} 22. Ne3 {[%clk 0:01:11]}  Qh5 {[%clk 0:00:27]} 23. Ng4 {[%clk 0:00:25]}  f5 {[%clk 0:00:16]} 24. Re5 {[%clk 0:00:22]}  Nxe5 {[%clk 0:00:16]} 25. Qxe5 {[%clk 0:00:22]}  Qg5 {[%clk 0:00:12]} 26. Ne3 {[%clk 0:00:14]}  Rf8 {[%clk 0:00:08]} 27. Rf1 {[%clk 0:00:12]}  f4 {[%clk 0:00:07]} 28. Qxg5 {[%clk 0:00:12]}  Rxg5 {[%clk 0:00:08]} 29. Nc4 {[%clk 0:00:09]}  Rb5 {[%clk 0:00:07]} 30. b4 {[%clk 0:00:08]}  Rg5 {[%clk 0:00:05]} 31. Ne5 {[%clk 0:00:08]}  c6 {[%clk 0:00:05]} 32. Nd7 {[%clk 0:00:06]}  Rf7 {[%clk 0:00:04]} 33. Ne5 {[%clk 0:00:07]}  Rf6 {[%clk 0:00:05]} 34. Nd7 {[%clk 0:00:06]}  Rff5 {[%clk 0:00:05]} 35. Re1 {[%clk 0:00:06]}  f3 {[%clk 0:00:03]} 36. Re8+ {[%clk 0:00:06]}  Kf7 {[%clk 0:00:04]} 37. Rf8+ {[%clk 0:00:06]}  Ke7 {[%clk 0:00:04]} 38. Rxf5 {[%clk 0:00:06]}  Rxf5 {[%clk 0:00:05]} 39. Nc5 {[%clk 0:00:04]}  fxg2 {[%clk 0:00:05]} 40. Kxg2 {[%clk 0:00:04]}  Rg5+ {[%clk 0:00:04]} 41. Kf2 {[%clk 0:00:04]}  Rh5 {[%clk 0:00:03]} 42. Kg2 {[%clk 0:00:04]}  Kd6 {[%clk 0:00:03]} 43. Nxb7+ {[%clk 0:00:04]}  Kc7 {[%clk 0:00:04]} 44. Nc5 {[%clk 0:00:04]}  Rg5+ {[%clk 0:00:04]} 45. Kf2 {[%clk 0:00:04]}  Rf5+ {[%clk 0:00:04]} 46. Kg2 {[%clk 0:00:03]}  Rf8 {[%clk 0:00:02]} 47. Ne6+ {[%clk 0:00:03]}  Kd6 {[%clk 0:00:03]} 48. Nxf8 {[%clk 0:00:04]}  Kd5 {[%clk 0:00:02]} 49. Nxh7 {[%clk 0:00:03]}  Kc4 {[%clk 0:00:03]} 50. Ng5 {[%clk 0:00:02]}  Kxc3 {[%clk 0:00:04]} 51. Ne6 {[%clk 0:00:02]}  Kxb4 {[%clk 0:00:04]} 52. Nc5 {[%clk 0:00:01]}  Kxa5 {[%clk 0:00:05]} 53. h4 {[%clk 0:00:01]}  Kb5 {[%clk 0:00:06]} 54. Kf3 {[%clk 0:00:01]}  Kc4 {[%clk 0:00:07]} 55. Ke4 {[%clk 0:00:01]}  Kb5 {[%clk 0:00:07]} 56. Ke5 {[%clk 0:00:02]}  a5 {[%clk 0:00:08]} 57. Kd6 {[%clk 0:00:02]}  a4 {[%clk 0:00:08]} 58. Nxa4 {[%clk 0:00:02]}  Kxa4 {[%clk 0:00:09]} 59. Kxc6 {[%clk 0:00:03]}  Kb4 {[%clk 0:00:09]} 60. d5 {[%clk 0:00:04]}  Kc4 {[%clk 0:00:10]} 61. d6 {[%clk 0:00:05]}  Kd4 {[%clk 0:00:10]} 62. d7 {[%clk 0:00:06]}  g5 {[%clk 0:00:11]} 63. d8=Q+ {[%clk 0:00:07]}  Ke4 {[%clk 0:00:09]} 64. Qxg5 {[%clk 0:00:07]} 1-0


[Site "https://www.chess.com"]

[Event "Titled Tuesday Blitz October 31 Late 2023"]
[White "Sarkar, Justin"]
[Black "Bokros, Albert"]
[WhiteFideId "2010011"]
[BlackFideId "710458"]
[WhiteElo "2214"]
[BlackElo "2325"]
[Result "0-1"]
[Round "8"]
[TimeControl "180+1"]
[Date "2023.10.31"]
[WhiteClock "0:00:00"]
[BlackClock "0:01:09"]
[Board "119"]

1. e4 {[%clk 0:02:04]}  Nf6 {[%clk 0:02:57]} 2. e5 {[%clk 0:02:03]}  Nd5 {[%clk 0:02:58]} 3. c4 {[%clk 0:01:47]}  Nb6 {[%clk 0:02:57]} 4. d4 {[%clk 0:01:42]}  d6 {[%clk 0:02:56]} 5. exd6 {[%clk 0:01:39]}  cxd6 {[%clk 0:02:55]} 6. Nc3 {[%clk 0:01:36]}  g6 {[%clk 0:02:55]} 7. Be3 {[%clk 0:01:35]}  Bg7 {[%clk 0:02:54]} 8. Rc1 {[%clk 0:01:36]}  O-O {[%clk 0:02:54]} 9. Nf3 {[%clk 0:01:31]}  Bg4 {[%clk 0:02:51]} 10. b3 {[%clk 0:01:27]}  Nc6 {[%clk 0:02:46]} 11. Be2 {[%clk 0:01:22]}  d5 {[%clk 0:02:45]} 12. c5 {[%clk 0:01:15]}  Nc8 {[%clk 0:02:44]} 13. O-O {[%clk 0:01:08]}  e6 {[%clk 0:02:42]} 14. Ne1 {[%clk 0:00:54]}  Bxe2 {[%clk 0:02:35]} 15. Nxe2 {[%clk 0:00:54]}  N8e7 {[%clk 0:02:34]} 16. Ng3 {[%clk 0:00:41]}  h5 {[%clk 0:02:11]} 17. Nf3 {[%clk 0:00:40]}  Bf6 {[%clk 0:01:48]} 18. Bh6 {[%clk 0:00:19]}  Re8 {[%clk 0:01:25]} 19. Bg5 {[%clk 0:00:18]}  Bg7 {[%clk 0:01:23]} 20. Qd2 {[%clk 0:00:17]}  Qd7 {[%clk 0:01:20]} 21. Bh6 {[%clk 0:00:16]}  a5 {[%clk 0:01:14]} 22. Bxg7 {[%clk 0:00:15]}  Kxg7 {[%clk 0:01:15]} 23. Qg5 {[%clk 0:00:15]}  Kh7 {[%clk 0:01:09]} 24. Nxh5 {[%clk 0:00:13]}  gxh5 {[%clk 0:01:09]} 25. Qxh5+ {[%clk 0:00:13]}  Kg7 {[%clk 0:01:10]} 26. Ng5 {[%clk 0:00:13]}  Ng6 {[%clk 0:01:09]} 27. Qh7+ {[%clk 0:00:13]}  Kf6 {[%clk 0:01:10]} 28. Qh6 {[%clk 0:00:02]}  Rh8 {[%clk 0:01:08]} 29. Nh7+ {[%clk 0:00:02]}  Rxh7 {[%clk 0:01:08]} 30. Qxh7 {[%clk 0:00:00]}  Rh8 {[%clk 0:01:09]} 0-1


[Site "https://www.chess.com"]

[Event "Titled Tuesday Blitz October 31 Late 2023"]
[White "pinguino120"]
[Black "Desideri, Ricardo Maruchi"]
[BlackFideId "2110440"]
[WhiteElo "2235"]
[BlackElo "1966"]
[Result "1-0"]
[Round "8"]
[TimeControl "180+1"]
[Date "2023.10.31"]
[WhiteClock "0:00:32"]
[BlackClock "0:00:00"]
[Board "120"]

1. e4 {[%clk 0:03:00]}  c5 {[%clk 0:02:58]} 2. Nf3 {[%clk 0:03:00]}  d6 {[%clk 0:02:58]} 3. c3 {[%clk 0:03:00]}  g6 {[%clk 0:02:57]} 4. d4 {[%clk 0:02:59]}  cxd4 {[%clk 0:02:57]} 5. cxd4 {[%clk 0:03:00]}  Bg7 {[%clk 0:02:56]} 6. h3 {[%clk 0:03:00]}  d5 {[%clk 0:02:56]} 7. e5 {[%clk 0:02:58]}  Nh6 {[%clk 0:02:56]} 8. Nc3 {[%clk 0:02:58]}  O-O {[%clk 0:02:55]} 9. Qb3 {[%clk 0:02:57]}  e6 {[%clk 0:02:45]} 10. Be2 {[%clk 0:02:56]}  Nf5 {[%clk 0:02:43]} 11. O-O {[%clk 0:02:52]}  Nc6 {[%clk 0:02:41]} 12. Be3 {[%clk 0:02:52]}  a6 {[%clk 0:02:39]} 13. Rac1 {[%clk 0:02:50]}  Na5 {[%clk 0:02:13]} 14. Qd1 {[%clk 0:02:37]}  b5 {[%clk 0:02:12]} 15. b3 {[%clk 0:02:35]}  Bb7 {[%clk 0:02:02]} 16. Qd2 {[%clk 0:02:34]}  Nxe3 {[%clk 0:01:47]} 17. fxe3 {[%clk 0:02:33]}  Rc8 {[%clk 0:01:43]} 18. Ne1 {[%clk 0:02:25]}  Bh6 {[%clk 0:01:42]} 19. Nd3 {[%clk 0:02:22]}  Nc6 {[%clk 0:01:38]} 20. Nc5 {[%clk 0:02:22]}  Qe7 {[%clk 0:01:29]} 21. a3 {[%clk 0:02:07]}  Rfd8 {[%clk 0:01:20]} 22. b4 {[%clk 0:01:58]}  Nxe5 {[%clk 0:01:04]} 23. Nxb7 {[%clk 0:01:07]}  Qxb7 {[%clk 0:01:03]} 24. dxe5 {[%clk 0:01:07]}  d4 {[%clk 0:01:02]} 25. Nd1 {[%clk 0:01:01]}  Rxc1 {[%clk 0:00:18]} 26. Qxc1 {[%clk 0:00:59]}  dxe3 {[%clk 0:00:18]} 27. Nxe3 {[%clk 0:00:47]}  Qb6 {[%clk 0:00:17]} 28. Rf3 {[%clk 0:00:44]}  Rd4 {[%clk 0:00:12]} 29. Kh2 {[%clk 0:00:42]}  Re4 {[%clk 0:00:11]} 30. Qc8+ {[%clk 0:00:41]}  Kg7 {[%clk 0:00:10]} 31. Ng4 {[%clk 0:00:37]}  Rxe2 {[%clk 0:00:08]} 32. Nxh6 {[%clk 0:00:37]}  Kxh6 {[%clk 0:00:07]} 33. Qf8+ {[%clk 0:00:37]}  Kg5 {[%clk 0:00:00]} 34. Qxf7 {[%clk 0:00:32]} 1-0


[Site "https://www.chess.com"]

[Event "Titled Tuesday Blitz October 31 Late 2023"]
[White "Acikel, Mert"]
[Black "Petersson, Kjell"]
[WhiteFideId "12956465"]
[BlackFideId "1705148"]
[WhiteElo "2295"]
[BlackElo "2147"]
[Result "1-0"]
[Round "8"]
[TimeControl "180+1"]
[Date "2023.10.31"]
[WhiteClock "0:01:12"]
[BlackClock "0:00:00"]
[Board "122"]

1. e4 {[%clk 0:03:00]}  c5 {[%clk 0:02:59]} 2. c3 {[%clk 0:03:01]}  d5 {[%clk 0:02:58]} 3. exd5 {[%clk 0:03:00]}  Qxd5 {[%clk 0:02:59]} 4. d4 {[%clk 0:03:01]}  Nc6 {[%clk 0:02:58]} 5. Nf3 {[%clk 0:03:01]}  cxd4 {[%clk 0:02:57]} 6. cxd4 {[%clk 0:03:02]}  e5 {[%clk 0:02:57]} 7. Nc3 {[%clk 0:03:02]}  Bb4 {[%clk 0:02:57]} 8. Bd2 {[%clk 0:03:02]}  Bxc3 {[%clk 0:02:58]} 9. Bxc3 {[%clk 0:03:02]}  e4 {[%clk 0:02:58]} 10. Ne5 {[%clk 0:03:03]}  Nxe5 {[%clk 0:02:57]} 11. dxe5 {[%clk 0:03:04]}  Ne7 {[%clk 0:02:57]} 12. Qe2 {[%clk 0:03:01]}  O-O {[%clk 0:02:55]} 13. Rd1 {[%clk 0:03:01]}  Qc6 {[%clk 0:02:47]} 14. Bb4 {[%clk 0:02:51]}  Re8 {[%clk 0:02:20]} 15. Bxe7 {[%clk 0:02:30]}  Rxe7 {[%clk 0:02:21]} 16. Rd8+ {[%clk 0:02:29]}  Re8 {[%clk 0:02:21]} 17. Rxe8+ {[%clk 0:02:29]}  Qxe8 {[%clk 0:02:22]} 18. Qxe4 {[%clk 0:02:29]}  f6 {[%clk 0:01:40]} 19. Bc4+ {[%clk 0:02:08]}  Be6 {[%clk 0:01:23]} 20. O-O {[%clk 0:01:54]}  fxe5 {[%clk 0:01:14]} 21. Bxe6+ {[%clk 0:01:54]}  Qxe6 {[%clk 0:01:14]} 22. Qxb7 {[%clk 0:01:55]}  Qe8 {[%clk 0:00:47]} 23. Re1 {[%clk 0:01:53]}  Kh8 {[%clk 0:00:40]} 24. Rxe5 {[%clk 0:01:46]}  Qc8 {[%clk 0:00:29]} 25. Qxc8+ {[%clk 0:01:43]}  Rxc8 {[%clk 0:00:30]} 26. g3 {[%clk 0:01:40]}  Kg8 {[%clk 0:00:29]} 27. b4 {[%clk 0:01:37]}  Rc1+ {[%clk 0:00:21]} 28. Kg2 {[%clk 0:01:37]}  Ra1 {[%clk 0:00:19]} 29. Ra5 {[%clk 0:01:36]}  Rb1 {[%clk 0:00:17]} 30. a3 {[%clk 0:01:36]}  Kf7 {[%clk 0:00:13]} 31. Rxa7+ {[%clk 0:01:36]}  Kf6 {[%clk 0:00:13]} 32. h4 {[%clk 0:01:27]}  h5 {[%clk 0:00:13]} 33. Ra5 {[%clk 0:01:27]}  g6 {[%clk 0:00:12]} 34. b5 {[%clk 0:01:27]}  Ke6 {[%clk 0:00:09]} 35. a4 {[%clk 0:01:27]}  Kd7 {[%clk 0:00:08]} 36. Ra6 {[%clk 0:01:27]}  Ra1 {[%clk 0:00:07]} 37. Rxg6 {[%clk 0:01:24]}  Rxa4 {[%clk 0:00:06]} 38. Rg5 {[%clk 0:01:25]}  Rb4 {[%clk 0:00:03]} 39. Rxh5 {[%clk 0:01:25]}  Ke6 {[%clk 0:00:03]} 40. Rg5 {[%clk 0:01:23]}  Kf6 {[%clk 0:00:04]} 41. Rc5 {[%clk 0:01:23]}  Kg6 {[%clk 0:00:03]} 42. Rc6+ {[%clk 0:01:23]}  Kh5 {[%clk 0:00:04]} 43. b6 {[%clk 0:01:24]}  Rb5 {[%clk 0:00:00]} 44. Kh3 {[%clk 0:01:12]} 1-0


[Site "https://www.chess.com"]

[Event "Titled Tuesday Blitz October 31 Late 2023"]
[White "ChessDojo"]
[Black "LuxLinster"]
[WhiteElo "2139"]
[BlackElo "2261"]
[Result "0-1"]
[Round "8"]
[TimeControl "180+1"]
[Date "2023.10.31"]
[WhiteClock "0:00:17"]
[BlackClock "0:00:41"]
[Board "124"]

1. c4 {[%clk 0:03:00]}  e5 {[%clk 0:02:57]} 2. Nc3 {[%clk 0:03:00]}  Nf6 {[%clk 0:02:57]} 3. Nf3 {[%clk 0:03:00]}  Nc6 {[%clk 0:02:56]} 4. g3 {[%clk 0:03:00]}  d5 {[%clk 0:02:56]} 5. cxd5 {[%clk 0:03:00]}  Nxd5 {[%clk 0:02:57]} 6. Bg2 {[%clk 0:03:00]}  Nb6 {[%clk 0:02:58]} 7. O-O {[%clk 0:03:00]}  Be7 {[%clk 0:02:58]} 8. d3 {[%clk 0:02:59]}  O-O {[%clk 0:02:58]} 9. Bd2 {[%clk 0:02:58]}  Be6 {[%clk 0:02:57]} 10. Rc1 {[%clk 0:02:59]}  f6 {[%clk 0:02:52]} 11. a3 {[%clk 0:02:59]}  Nd4 {[%clk 0:02:47]} 12. Nxd4 {[%clk 0:02:55]}  exd4 {[%clk 0:02:48]} 13. Ne4 {[%clk 0:02:48]}  Bd5 {[%clk 0:02:39]} 14. b4 {[%clk 0:02:42]}  a5 {[%clk 0:02:31]} 15. Bf4 {[%clk 0:02:36]}  c6 {[%clk 0:02:27]} 16. bxa5 {[%clk 0:02:21]}  Rxa5 {[%clk 0:02:24]} 17. Qc2 {[%clk 0:02:05]}  f5 {[%clk 0:02:14]} 18. Nd2 {[%clk 0:01:56]}  Bxg2 {[%clk 0:02:13]} 19. Kxg2 {[%clk 0:01:55]}  g5 {[%clk 0:02:02]} 20. Nb3 {[%clk 0:01:48]}  Qd5+ {[%clk 0:01:37]} 21. f3 {[%clk 0:01:29]}  Rxa3 {[%clk 0:01:36]} 22. Rb1 {[%clk 0:01:16]}  gxf4 {[%clk 0:01:35]} 23. Nd2 {[%clk 0:01:14]}  Ra2 {[%clk 0:01:27]} 24. Qc1 {[%clk 0:01:10]}  Qc5 {[%clk 0:01:09]} 25. Nc4 {[%clk 0:01:02]}  Rxe2+ {[%clk 0:01:07]} 26. Rf2 {[%clk 0:00:57]}  Rxf2+ {[%clk 0:01:07]} 27. Kxf2 {[%clk 0:00:58]}  Nxc4 {[%clk 0:01:07]} 28. dxc4 {[%clk 0:00:49]}  d3+ {[%clk 0:01:07]} 29. Kg2 {[%clk 0:00:49]}  fxg3 {[%clk 0:00:59]} 30. hxg3 {[%clk 0:00:44]}  Ra8 {[%clk 0:00:48]} 31. Rxb7 {[%clk 0:00:41]}  Ra2+ {[%clk 0:00:47]} 32. Rb2 {[%clk 0:00:41]}  Qa3 {[%clk 0:00:42]} 33. Qh6 {[%clk 0:00:17]}  Qxb2+ {[%clk 0:00:41]} 0-1


[Site "https://www.chess.com"]

[Event "Titled Tuesday Blitz October 31 Late 2023"]
[White "Oliveira, Tiago Batista"]
[Black "Lock, Gavin R"]
[WhiteFideId "2108291"]
[BlackFideId "408646"]
[WhiteElo "2047"]
[BlackElo "2233"]
[Result "0-1"]
[Round "8"]
[TimeControl "180+1"]
[Date "2023.10.31"]
[WhiteClock "0:00:00"]
[BlackClock "0:00:19"]
[Board "125"]

1. d4 {[%clk 0:01:59]}  d5 {[%clk 0:02:58]} 2. c4 {[%clk 0:02:00]}  e6 {[%clk 0:02:58]} 3. Nf3 {[%clk 0:02:00]}  Nf6 {[%clk 0:02:56]} 4. g3 {[%clk 0:02:00]}  dxc4 {[%clk 0:02:56]} 5. Bg2 {[%clk 0:02:00]}  c5 {[%clk 0:02:57]} 6. O-O {[%clk 0:01:46]}  Nc6 {[%clk 0:02:51]} 7. Qa4 {[%clk 0:01:31]}  Bd7 {[%clk 0:02:47]} 8. dxc5 {[%clk 0:01:29]}  Na5 {[%clk 0:02:41]} 9. Qc2 {[%clk 0:01:24]}  Bxc5 {[%clk 0:02:38]} 10. Rd1 {[%clk 0:01:21]}  O-O {[%clk 0:02:10]} 11. Ne5 {[%clk 0:01:19]}  h6 {[%clk 0:02:07]} 12. Nc3 {[%clk 0:00:48]}  Qc7 {[%clk 0:01:48]} 13. Bf4 {[%clk 0:00:48]}  Qc8 {[%clk 0:01:23]} 14. Ne4 {[%clk 0:00:31]}  Nxe4 {[%clk 0:01:03]} 15. Nxd7 {[%clk 0:00:23]}  Nxf2 {[%clk 0:00:45]} 16. Kf1 {[%clk 0:00:22]}  Nxd1 {[%clk 0:00:37]} 17. Nxf8 {[%clk 0:00:22]}  Ne3+ {[%clk 0:00:18]} 18. Bxe3 {[%clk 0:00:00]}  Bxe3 {[%clk 0:00:19]} 0-1


[Site "https://www.chess.com"]

[Event "Titled Tuesday Blitz October 31 Late 2023"]
[White "Clawitter, Craig"]
[Black "Gyulamiryan-koryun"]
[WhiteFideId "2023105"]
[WhiteElo "2221"]
[BlackElo "1905"]
[Result "1-0"]
[Round "8"]
[TimeControl "180+1"]
[Date "2023.10.31"]
[WhiteClock "0:00:17"]
[BlackClock "0:00:00"]
[Board "126"]

1. e4 {[%clk 0:02:57]}  e5 {[%clk 0:02:57]} 2. Nf3 {[%clk 0:02:56]}  Nc6 {[%clk 0:02:56]} 3. Bc4 {[%clk 0:02:56]}  f5 {[%clk 0:02:55]} 4. d4 {[%clk 0:02:47]}  fxe4 {[%clk 0:02:46]} 5. Nxe5 {[%clk 0:02:46]}  Nxe5 {[%clk 0:02:44]} 6. dxe5 {[%clk 0:02:44]}  Qe7 {[%clk 0:02:22]} 7. O-O {[%clk 0:02:38]}  Qxe5 {[%clk 0:02:11]} 8. Nc3 {[%clk 0:02:37]}  Nf6 {[%clk 0:02:06]} 9. Re1 {[%clk 0:02:25]}  Bd6 {[%clk 0:01:59]} 10. g3 {[%clk 0:02:22]}  Kd8 {[%clk 0:01:37]} 11. Bf4 {[%clk 0:02:13]}  Qc5 {[%clk 0:01:31]} 12. Bxd6 {[%clk 0:02:08]}  Qxc4 {[%clk 0:01:27]} 13. Be5 {[%clk 0:01:49]}  Re8 {[%clk 0:01:04]} 14. Qd4 {[%clk 0:01:02]}  Qxd4 {[%clk 0:00:58]} 15. Bxd4 {[%clk 0:01:03]}  d6 {[%clk 0:00:52]} 16. Bxf6+ {[%clk 0:00:55]}  gxf6 {[%clk 0:00:51]} 17. Nxe4 {[%clk 0:00:54]}  f5 {[%clk 0:00:43]} 18. Nf6 {[%clk 0:00:53]}  Re5 {[%clk 0:00:39]} 19. f4 {[%clk 0:00:28]}  Re6 {[%clk 0:00:32]} 20. Nxh7 {[%clk 0:00:20]}  Ke7 {[%clk 0:00:17]} 21. Ng5 {[%clk 0:00:19]}  Rxe1+ {[%clk 0:00:12]} 22. Rxe1+ {[%clk 0:00:20]}  Kf6 {[%clk 0:00:04]} 23. Re8 {[%clk 0:00:20]}  b6 {[%clk 0:00:03]} 24. h4 {[%clk 0:00:19]}  Bb7 {[%clk 0:00:03]} 25. Rxa8 {[%clk 0:00:19]}  Bxa8 {[%clk 0:00:00]} 26. Kf2 {[%clk 0:00:17]} 1-0


[Site "https://www.chess.com"]